fUST/lending_fUST_20250704
["ID","MTS","AMOUNT","RATE_DAILY","PERIOD"]
[369388456,1751563842090,-460.0,0.00016712,2]
[369388457,1751563842100,-460.0,0.00016712,2]
[369388458,1751563842110,-460.0,0.00016712,2]
[369388459,1751563842119,-460.0,0.00016712,2]
[369388460,1751563842130,-296.56,0.00016712,2]
[369388461,1751563842139,-429.60239761,0.00016712,2]
[369388462,1751563842149,-460.0,0.00016712,2]
[369388463,1751563842159,-2701.36,0.00016712,2]
[369388464,1751563842169,-460.0,0.00016712,2]
[369388465,1751563842179,-460.0,0.00016712,2]
[369388466,1751563842188,-460.0,0.00016712,2]
[369388467,1751563842198,-460.0,0.00016712,2]
[369388468,1751563842207,-2515.67,0.00016712,2]
[369388469,1751563842217,-460.0,0.00016712,2]
[369388470,1751563842227,-460.0,0.00016712,2]
[369388471,1751563842237,-460.0,0.00016712,2]
[369388472,1751563842246,-460.0,0.00016712,2]
[369388473,1751563842256,-460.0,0.00016712,2]
[369388474,1751563842265,-460.0,0.00016712,2]
[369388475,1751563842275,-460.0,0.00016712,2]
[369388476,1751563842284,-460.0,0.00016712,2]
[369388477,1751563842294,-460.0,0.00016712,2]
[369388478,1751563842303,-997.47,0.00016712,2]
[369388479,1751563842313,-460.0,0.00016712,2]
[369388480,1751563842322,-2537.84,0.00016712,2]
[369388481,1751563842332,-2022.25,0.00016712,2]
[369388482,1751563842341,-460.0,0.00016712,2]
[369388483,1751563842351,-460.0,0.00016712,2]
[369388484,1751563842360,-1043.59,0.00016712,2]
[369388485,1751563842369,-460.0,0.00016712,2]
[369388486,1751563842378,-460.0,0.00016712,2]
[369388487,1751563842388,-460.0,0.00016712,2]
[369388488,1751563842397,-460.0,0.00016712,2]
[369388489,1751563842406,-460.0,0.00016712,2]
[369388490,1751563842415,-460.0,0.00016712,2]
[369388491,1751563842425,-783.72,0.00016712,2]
[369388492,1751563842434,-460.0,0.00016712,2]
[369388493,1751563842443,-460.0,0.00016712,2]
[369388494,1751563842452,-460.0,0.00016712,2]
[369388495,1751563842462,-460.0,0.00016712,2]
[369388496,1751563842471,-2875.89,0.00016712,2]
[369388497,1751563842480,-460.0,0.00016712,2]
[369388498,1751563842489,-460.0,0.00016712,2]
[369388499,1751563842499,-549.97,0.00016712,2]
[369388500,1751563842508,-460.0,0.00016712,2]
[369388501,1751563842517,-460.0,0.00016712,2]
[369388502,1751563842526,-3697.57,0.00016712,2]
[369388503,1751563842535,-460.0,0.00016712,2]
[369388504,1751563842545,-1173.47,0.00016712,2]
[369388505,1751563842554,-460.0,0.00016712,2]
[369388506,1751563842563,-460.0,0.00016712,2]
[369388507,1751563842573,-460.0,0.00016712,2]
[369388509,1751563842583,-460.0,0.00016712,2]
[369388510,1751563842592,-1662.84,0.00016712,2]
[369388511,1751563842601,-460.0,0.00016712,2]
[369388513,1751563842610,-460.0,0.00016712,2]
[369388514,1751563842620,-2045.68,0.00016712,2]
[369388516,1751563842629,-396.87294872,0.00016712,2]
[369388517,1751563842638,-460.0,0.00016712,2]
[369388519,1751563842647,-460.0,0.00016712,2]
[369388521,1751563842656,-837.76,0.00016712,2]
[369388523,1751563842666,-650.19,0.00016712,2]
[369388525,1751563842675,-820.62,0.00016712,2]
[369388527,1751563842684,-460.0,0.00016712,2]
[369388529,1751563842693,-460.0,0.00016712,2]
[369388545,1751563842840,-1704.48,0.00016712,2]
[369388547,1751563842851,-460.0,0.00016712,2]
[369388549,1751563842861,-460.0,0.00016712,2]
[369388551,1751563842870,-460.0,0.00016712,2]
[369388553,1751563842879,-3876.44,0.00016712,2]
[369388555,1751563842888,-937.63,0.00016712,2]
[369388557,1751563842898,-460.0,0.00016712,2]
[369388559,1751563842907,-460.0,0.00016712,2]
[369388561,1751563842916,-460.0,0.00016712,2]
[369388564,1751563842925,-427.48104392,0.00016712,2]
[369388568,1751563842934,-460.0,0.00016712,2]
[369388571,1751563842943,-460.0,0.00016712,2]
[369388573,1751563842952,-460.0,0.00016712,2]
[369388575,1751563842961,-151.0,0.00016738,2]
[369388577,1751563842970,-500.0,0.00016738,2]
[369388579,1751563842979,-500.0,0.00016738,2]
[369388581,1751563842988,-151.0,0.00016738,2]
[369388583,1751563842997,-151.0,0.00016738,2]
[369388585,1751563843007,-198.0,0.00016738,2]
[369388587,1751563843016,-151.0,0.00016738,2]
[369388589,1751563843025,-500.0,0.00016738,2]
[369388591,1751563843035,-151.0,0.00016738,2]
[369388593,1751563843044,-198.0,0.00016738,2]
[369388595,1751563843053,-500.0,0.00016752,2]
[369388597,1751563843063,-151.0,0.00016766,2]
[369388599,1751563843077,-500.0,0.00016766,2]
[369388601,1751563843087,-500.0,0.00016766,2]
[369388603,1751563843096,-198.0,0.00016766,2]
[369388605,1751563843105,-151.0,0.00016766,2]
[369388607,1751563843116,-151.0,0.00016766,2]
[369388609,1751563843126,-393.36967799,0.00016766,2]
[369388611,1751563843135,-151.0,0.00016766,2]
[369388613,1751563843145,-245.0,0.00016793,2]
[369388615,1751563843155,-500.0,0.00016793,2]
[369388617,1751563843165,-500.0,0.00016793,2]
[369388619,1751563843174,-245.0,0.00016793,2]
[369388621,1751563843183,-164.04737496,0.00016793,2]
[369388623,1751563843192,-245.0,0.00016793,2]
[369388625,1751563843202,-500.0,0.00016816,2]
[369388627,1751563843211,-172.19212022,0.00016816,2]
[369388629,1751563843220,-500.0,0.00016821,2]
[369388631,1751563843229,-500.0,0.00016821,2]
[369388633,1751563843239,-500.0,0.00016845,2]
[369388635,1751563843248,-500.0,0.00016848,2]
[369388637,1751563843258,-153.21834357,0.00016875,2]
[369388639,1751563843267,-1000.0,0.00016985,2]
[369388641,1751563843277,-1000.0,0.00016985,2]
[369388643,1751563843286,-213.69126395,0.00016986,2]
[369388645,1751563843295,-460.0,0.00016986,2]
[369388647,1751563843305,-460.0,0.00016986,2]
[369388649,1751563843315,-460.0,0.00016986,2]
[369388651,1751563843325,-460.0,0.00016986,2]
[369388653,1751563843336,-218.98030441,0.00016986,2]
[369388655,1751563843345,-460.0,0.00016986,2]
[369388657,1751563843355,-460.0,0.00016986,2]
[369388659,1751563843365,-460.0,0.00016986,2]
[369388661,1751563843375,-941.7,0.00016986,2]
[369388663,1751563843385,-460.0,0.00016986,2]
[369388665,1751563843394,-460.0,0.00016986,2]
[369388667,1751563843403,-609.36,0.00016986,2]
[369388669,1751563843413,-460.0,0.00016986,2]
[369388671,1751563843422,-460.0,0.00016986,2]
[369388673,1751563843431,-460.0,0.00016986,2]
[369388675,1751563843441,-460.0,0.00016986,2]
[369388677,1751563843450,-426.50838116,0.00016986,2]
[369388679,1751563843459,-460.0,0.00016986,2]
[369388681,1751563843468,-460.0,0.00016986,2]
[369388683,1751563843477,-460.0,0.00016986,2]
[369388685,1751563843487,-1061.72,0.00016986,2]
[369388687,1751563843496,-460.0,0.00016986,2]
[369388689,1751563843505,-527.61,0.00016986,2]
[369388691,1751563843515,-1182.01,0.00016986,2]
[369388692,1751563843524,-460.0,0.00016986,2]
[369388694,1751563843533,-460.0,0.00016986,2]
[369388696,1751563843542,-460.0,0.00016986,2]
[369388698,1751563843551,-460.0,0.00016986,2]
[369388700,1751563843561,-460.0,0.00016986,2]
[369388702,1751563843570,-460.0,0.00016986,2]
[369388704,1751563843580,-2701.36,0.00016986,2]
[369388706,1751563843589,-474.95382324,0.00016986,2]
[369388708,1751563843599,-460.0,0.00016986,2]
[369388710,1751563843608,-287.84,0.00016986,2]
[369388712,1751563843617,-460.0,0.00016986,2]
[369388714,1751563843626,-2515.67,0.00016986,2]
[369388716,1751563843639,-460.0,0.00016986,2]
[369388718,1751563843648,-460.0,0.00016986,2]
[369388720,1751563843657,-460.0,0.00016986,2]
[369388722,1751563843667,-460.0,0.00016986,2]
[369388724,1751563843676,-460.0,0.00016986,2]
[369388726,1751563843685,-460.0,0.00016986,2]
[369388728,1751563843694,-460.0,0.00016986,2]
[369388730,1751563843703,-460.0,0.00016986,2]
[369388732,1751563843713,-460.0,0.00016986,2]
[369388734,1751563843723,-997.47,0.00016986,2]
[369388736,1751563843732,-460.0,0.00016986,2]
[369388739,1751563843747,-2537.84,0.00016986,2]
[369388741,1751563843756,-2022.25,0.00016986,2]
[369388743,1751563843765,-460.0,0.00016986,2]
[369388745,1751563843775,-460.0,0.00016986,2]
[369388747,1751563843784,-1043.59,0.00016986,2]
[369388749,1751563843793,-460.0,0.00016986,2]
[369388751,1751563843802,-460.0,0.00016986,2]
[369388753,1751563843812,-460.0,0.00016986,2]
[369388755,1751563843821,-305.2,0.00016986,2]
[369388757,1751563843830,-366.64,0.00016986,2]
[369388759,1751563843839,-460.0,0.00016986,2]
[369388761,1751563843847,-783.72,0.00016986,2]
[369388763,1751563843857,-460.0,0.00016986,2]
[369388765,1751563843866,-460.0,0.00016986,2]
[369388767,1751563843875,-460.0,0.00016986,2]
[369388769,1751563843885,-2875.89,0.00016986,2]
[369388771,1751563843894,-460.0,0.00016986,2]
[369388773,1751563843903,-549.97,0.00016986,2]
[369388775,1751563843912,-460.0,0.00016986,2]
[369388777,1751563843922,-460.0,0.00016986,2]
[369388779,1751563843931,-3697.57,0.00016986,2]
[369388781,1751563843940,-460.0,0.00016986,2]
[369388783,1751563843949,-1173.47,0.00016986,2]
[369388785,1751563843958,-460.0,0.00016986,2]
[369388787,1751563843968,-460.0,0.00016986,2]
[369388789,1751563843977,-285.89751404,0.00016986,2]
[369388791,1751563843987,-1662.84,0.00016986,2]
[369388793,1751563843997,-460.0,0.00016986,2]
[369388795,1751563844006,-460.0,0.00016986,2]
[369388797,1751563844016,-2045.68,0.00016986,2]
[369388799,1751563844025,-460.0,0.00016986,2]
[369388801,1751563844035,-460.0,0.00016986,2]
[369388803,1751563844047,-837.76,0.00016986,2]
[369388805,1751563844056,-650.19,0.00016986,2]
[369388807,1751563844066,-820.62,0.00016986,2]
[369388809,1751563844076,-460.0,0.00016986,2]
[369388811,1751563844086,-460.0,0.00016986,2]
[369388813,1751563844097,-1704.48,0.00016986,2]
[369388815,1751563844107,-460.0,0.00016986,2]
[369388817,1751563844116,-3876.44,0.00016986,2]
[369388819,1751563844126,-460.0,0.00016986,2]
[369388821,1751563844135,-937.63,0.00016986,2]
[369388823,1751563844144,-460.0,0.00016986,2]
[369388825,1751563844154,-460.0,0.00016986,2]
[369388827,1751563844163,-460.0,0.00016986,2]
[369388829,1751563844173,-460.0,0.00016986,2]
[369388831,1751563844182,-460.0,0.00016986,2]
[369388833,1751563844192,-1000.0,0.00017259,2]
[369388834,1751563844201,-1000.0,0.00017259,2]
[369388836,1751563844211,-460.0,0.0001726,2]
[369388839,1751563844220,-460.0,0.0001726,2]
[369388840,1751563844229,-460.0,0.0001726,2]
[369388842,1751563844238,-460.0,0.0001726,2]
[369388844,1751563844248,-460.0,0.0001726,2]
[369388847,1751563844259,-460.0,0.0001726,2]
[369388849,1751563844270,-941.7,0.0001726,2]
[369388851,1751563844279,-460.0,0.0001726,2]
[369388852,1751563844288,-460.0,0.0001726,2]
[369388855,1751563844298,-460.0,0.0001726,2]
[369388856,1751563844308,-460.0,0.0001726,2]
[369388859,1751563844317,-362.78262875,0.0001726,2]
[369388860,1751563844326,-460.0,0.0001726,2]
[369388862,1751563844336,-460.0,0.0001726,2]
[369388864,1751563844345,-460.0,0.0001726,2]
[369388866,1751563844354,-460.0,0.0001726,2]
[369388868,1751563844363,-1061.72,0.0001726,2]
[369388870,1751563844373,-460.0,0.0001726,2]
[369388872,1751563844382,-527.61,0.0001726,2]
[369388874,1751563844392,-1182.01,0.0001726,2]
[369388876,1751563844402,-460.0,0.0001726,2]
[369388879,1751563844411,-460.0,0.0001726,2]
[369388880,1751563844420,-460.0,0.0001726,2]
[369388882,1751563844430,-460.0,0.0001726,2]
[369388884,1751563844438,-460.0,0.0001726,2]
[369388886,1751563844448,-460.0,0.0001726,2]
[369388888,1751563844457,-2701.36,0.0001726,2]
[369388890,1751563844466,-460.0,0.0001726,2]
[369388892,1751563844476,-460.0,0.0001726,2]
[369388895,1751563844485,-2515.67,0.0001726,2]
[369388897,1751563844495,-460.0,0.0001726,2]
[369388899,1751563844504,-460.0,0.0001726,2]
[369388900,1751563844514,-460.0,0.0001726,2]
[369388902,1751563844523,-460.0,0.0001726,2]
[369388904,1751563844532,-460.0,0.0001726,2]
[369388906,1751563844542,-460.0,0.0001726,2]
[369388908,1751563844551,-460.0,0.0001726,2]
[369388910,1751563844560,-460.0,0.0001726,2]
[369388912,1751563844569,-997.47,0.0001726,2]
[369388914,1751563844579,-460.0,0.0001726,2]
[369388916,1751563844588,-2537.84,0.0001726,2]
[369388918,1751563844597,-2022.25,0.0001726,2]
[369388920,1751563844606,-460.0,0.0001726,2]
[369388922,1751563844615,-460.0,0.0001726,2]
[369388924,1751563844626,-1043.59,0.0001726,2]
[369388926,1751563844635,-460.0,0.0001726,2]
[369388928,1751563844644,-460.0,0.0001726,2]
[369388930,1751563844654,-460.0,0.0001726,2]
[369388932,1751563844663,-460.0,0.0001726,2]
[369388934,1751563844672,-783.72,0.0001726,2]
[369388936,1751563844681,-460.0,0.0001726,2]
[369388938,1751563844690,-460.0,0.0001726,2]
[369388940,1751563844699,-460.0,0.0001726,2]
[369388942,1751563844709,-2875.89,0.0001726,2]
[369388944,1751563844718,-460.0,0.0001726,2]
[369388946,1751563844727,-549.97,0.0001726,2]
[369388948,1751563844736,-460.0,0.0001726,2]
[369388950,1751563844746,-460.0,0.0001726,2]
[369388952,1751563844755,-3697.57,0.0001726,2]
[369388954,1751563844764,-460.0,0.0001726,2]
[369388956,1751563844772,-1173.47,0.0001726,2]
[369388958,1751563844781,-460.0,0.0001726,2]
[369388960,1751563844790,-460.0,0.0001726,2]
[369388962,1751563844800,-1662.84,0.0001726,2]
[369388964,1751563844809,-157.85461952,0.0001726,2]
[369388965,1751563844818,-460.0,0.0001726,2]
[369388967,1751563844827,-2045.68,0.0001726,2]
[369388969,1751563844836,-460.0,0.0001726,2]
[369388971,1751563844846,-226.85241701,0.0001726,2]
[369388973,1751563844855,-837.76,0.0001726,2]
[369388975,1751563844864,-650.19,0.0001726,2]
[369388977,1751563844873,-820.62,0.0001726,2]
[369388979,1751563844882,-460.0,0.0001726,2]
[369388981,1751563844891,-460.0,0.0001726,2]
[369388983,1751563844901,-1704.48,0.0001726,2]
[369388985,1751563844909,-460.0,0.0001726,2]
[369388987,1751563844918,-3876.44,0.0001726,2]
[369388989,1751563844928,-460.0,0.0001726,2]
[369388990,1751563844937,-937.63,0.0001726,2]
[369388991,1751563844946,-460.0,0.0001726,2]
[369388992,1751563844955,-460.0,0.0001726,2]
[369388993,1751563844963,-460.0,0.0001726,2]
[369388994,1751563844973,-460.0,0.0001726,2]
[369388995,1751563844982,-224.14749735,0.0001726,2]
[369388996,1751563844991,-250.0,0.00017343,2]
[369388997,1751563845001,-250.0,0.00017382,2]
[369388999,1751563845010,-1000.0,0.00017393,2]
[369389001,1751563845020,-250.0,0.00017422,2]
[369389003,1751563845028,-250.0,0.00017462,2]
[369389005,1751563845038,-250.0,0.00017501,2]
[369389007,1751563845047,-1000.0,0.00017533,2]
[369389009,1751563845056,-1000.0,0.00017533,2]
[369389011,1751563845065,-153.28,0.00017534,2]
[369389013,1751563845076,-460.0,0.00017534,2]
[369389016,1751563845085,-460.0,0.00017534,2]
[369389017,1751563845097,-460.0,0.00017534,2]
[369389019,1751563845106,-460.0,0.00017534,2]
[369389022,1751563845117,-542.6,0.00017534,2]
[369389024,1751563845126,-941.7,0.00017534,2]
[369389026,1751563845135,-460.0,0.00017534,2]
[369389028,1751563845144,-460.0,0.00017534,2]
[369389030,1751563845154,-174.88,0.00017534,2]
[369389032,1751563845164,-543.08406124,0.00017534,2]
[369389033,1751563845173,-460.0,0.00017534,2]
[369389035,1751563845183,-460.0,0.00017534,2]
[369389037,1751563845192,-460.0,0.00017534,2]
[369389039,1751563845201,-460.0,0.00017534,2]
[369389041,1751563845211,-1061.72,0.00017534,2]
[369389043,1751563845221,-460.0,0.00017534,2]
[369389045,1751563845231,-527.61,0.00017534,2]
[369389048,1751563845242,-1182.01,0.00017534,2]
[369389050,1751563845252,-460.0,0.00017534,2]
[369389052,1751563845263,-460.0,0.00017534,2]
[369389053,1751563845273,-460.0,0.00017534,2]
[369389055,1751563845283,-460.0,0.00017534,2]
[369389057,1751563845292,-460.0,0.00017534,2]
[369389059,1751563845302,-2701.36,0.00017534,2]
[369389062,1751563845314,-460.0,0.00017534,2]
[369389064,1751563845324,-460.0,0.00017534,2]
[369389066,1751563845333,-460.0,0.00017534,2]
[369389068,1751563845343,-2515.67,0.00017534,2]
[369389069,1751563845353,-460.0,0.00017534,2]
[369389071,1751563845362,-460.0,0.00017534,2]
[369389074,1751563845372,-460.0,0.00017534,2]
[369389075,1751563845381,-460.0,0.00017534,2]
[369389077,1751563845391,-489.69,0.00017534,2]
[369389080,1751563845402,-460.0,0.00017534,2]
[369389082,1751563845412,-460.0,0.00017534,2]
[369389084,1751563845422,-460.0,0.00017534,2]
[369389086,1751563845432,-997.47,0.00017534,2]
[369389088,1751563845442,-460.0,0.00017534,2]
[369389090,1751563845452,-2537.84,0.00017534,2]
[369389092,1751563845461,-2022.25,0.00017534,2]
[369389094,1751563845471,-460.0,0.00017534,2]
[369389096,1751563845480,-1043.59,0.00017534,2]
[369389098,1751563845490,-460.0,0.00017534,2]
[369389100,1751563845500,-460.0,0.00017534,2]
[369389102,1751563845509,-460.0,0.00017534,2]
[369389104,1751563845519,-460.0,0.00017534,2]
[369389106,1751563845531,-460.0,0.00017534,2]
[369389108,1751563845540,-783.72,0.00017534,2]
[369389110,1751563845549,-460.0,0.00017534,2]
[369389112,1751563845558,-460.0,0.00017534,2]
[369389114,1751563845568,-460.0,0.00017534,2]
[369389116,1751563845577,-2875.89,0.00017534,2]
[369389118,1751563845586,-460.0,0.00017534,2]
[369389120,1751563845595,-549.97,0.00017534,2]
[369389122,1751563845605,-460.0,0.00017534,2]
[369389124,1751563845615,-460.0,0.00017534,2]
[369389126,1751563845624,-3697.57,0.00017534,2]
[369389128,1751563845634,-460.0,0.00017534,2]
[369389130,1751563845643,-1173.47,0.00017534,2]
[369389133,1751563845656,-460.0,0.00017534,2]
[369389134,1751563845666,-460.0,0.00017534,2]
[369389137,1751563845675,-1662.84,0.00017534,2]
[369389139,1751563845686,-460.0,0.00017534,2]
[369389140,1751563845695,-2045.68,0.00017534,2]
[369389142,1751563845704,-460.0,0.00017534,2]
[369389144,1751563845714,-837.76,0.00017534,2]
[369389147,1751563845724,-650.19,0.00017534,2]
[369389149,1751563845733,-820.62,0.00017534,2]
[369389151,1751563845742,-460.0,0.00017534,2]
[369389172,1751563845882,-460.0,0.00017534,2]
[369389174,1751563845892,-1704.48,0.00017534,2]
[369389176,1751563845902,-460.0,0.00017534,2]
[369389178,1751563845911,-3876.44,0.00017534,2]
[369389180,1751563845921,-460.0,0.00017534,2]
[369389182,1751563845931,-937.63,0.00017534,2]
[369389184,1751563845940,-460.0,0.00017534,2]
[369389186,1751563845950,-460.0,0.00017534,2]
[369389188,1751563845960,-460.0,0.00017534,2]
[369389191,1751563845970,-460.0,0.00017534,2]
[369389192,1751563845980,-250.0,0.00017541,2]
[369389195,1751563845990,-250.0,0.00017581,2]
[369389196,1751563846000,-1131.15,0.000176,2]
[369389198,1751563846009,-250.0,0.0001762,2]
[369389201,1751563846019,-250.0,0.0001766,2]
[369389203,1751563846028,-250.0,0.000177,2]
[369389205,1751563846038,-250.0,0.0001774,2]
[369389207,1751563846048,-250.0,0.00017779,2]
[369389209,1751563846057,-1000.0,0.00017807,2]
[369389211,1751563846067,-1000.0,0.00017807,2]
[369389213,1751563846079,-460.0,0.00017808,2]
[369389215,1751563846088,-460.0,0.00017808,2]
[369389217,1751563846100,-460.0,0.00017808,2]
[369389219,1751563846110,-941.7,0.00017808,2]
[369389221,1751563846119,-460.0,0.00017808,2]
[369389223,1751563846129,-460.0,0.00017808,2]
[369389225,1751563846138,-562.870575,0.00017808,2]
[369389227,1751563846147,-460.0,0.00017808,2]
[369389229,1751563846156,-460.0,0.00017808,2]
[369389231,1751563846167,-1061.72,0.00017808,2]
[369389233,1751563846176,-460.0,0.00017808,2]
[369389235,1751563846186,-527.61,0.00017808,2]
[369389237,1751563846196,-1182.01,0.00017808,2]
[369389239,1751563846205,-460.0,0.00017808,2]
[369389241,1751563846214,-460.0,0.00017808,2]
[369389243,1751563846224,-460.0,0.00017808,2]
[369389245,1751563846234,-2701.36,0.00017808,2]
[369389247,1751563846243,-460.0,0.00017808,2]
[369389249,1751563846253,-460.0,0.00017808,2]
[369389251,1751563846262,-460.0,0.00017808,2]
[369389253,1751563846272,-2515.67,0.00017808,2]
[369389255,1751563846281,-460.0,0.00017808,2]
[369389257,1751563846291,-460.0,0.00017808,2]
[369389259,1751563846300,-460.0,0.00017808,2]
[369389261,1751563846310,-607.48,0.00017808,2]
[369389263,1751563846321,-460.0,0.00017808,2]
[369389265,1751563846330,-460.0,0.00017808,2]
[369389267,1751563846340,-460.0,0.00017808,2]
[369389269,1751563846350,-997.47,0.00017808,2]
[369389271,1751563846359,-460.0,0.00017808,2]
[369389273,1751563846368,-2537.84,0.00017808,2]
[369389275,1751563846377,-2022.25,0.00017808,2]
[369389277,1751563846387,-460.0,0.00017808,2]
[369389279,1751563846396,-1043.59,0.00017808,2]
[369389281,1751563846406,-460.0,0.00017808,2]
[369389284,1751563846416,-460.0,0.00017808,2]
[369389286,1751563846425,-460.0,0.00017808,2]
[369389288,1751563846435,-460.0,0.00017808,2]
[369389289,1751563846444,-460.0,0.00017808,2]
[369389292,1751563846453,-783.72,0.00017808,2]
[369389294,1751563846463,-460.0,0.00017808,2]
[369389296,1751563846472,-460.0,0.00017808,2]
[369389298,1751563846481,-460.0,0.00017808,2]
[369389300,1751563846490,-2875.89,0.00017808,2]
[369389302,1751563846499,-460.0,0.00017808,2]
[369389304,1751563846508,-549.97,0.00017808,2]
[369389306,1751563846517,-460.0,0.00017808,2]
[369389308,1751563846526,-460.0,0.00017808,2]
[369389310,1751563846535,-3697.57,0.00017808,2]
[369389312,1751563846544,-227.02,0.00017808,2]
[369389314,1751563846554,-1173.47,0.00017808,2]
[369389316,1751563846563,-460.0,0.00017808,2]
[369389318,1751563846572,-460.0,0.00017808,2]
[369389320,1751563846583,-1662.84,0.00017808,2]
[369389322,1751563846592,-460.0,0.00017808,2]
[369389324,1751563846600,-2045.68,0.00017808,2]
[369389326,1751563846610,-460.0,0.00017808,2]
[369389328,1751563846619,-837.76,0.00017808,2]
[369389330,1751563846628,-650.19,0.00017808,2]
[369389332,1751563846637,-820.62,0.00017808,2]
[369389334,1751563846646,-460.0,0.00017808,2]
[369389336,1751563846655,-460.0,0.00017808,2]
[369389338,1751563846664,-1704.48,0.00017808,2]
[369389340,1751563846674,-599.8,0.00017808,2]
[369389342,1751563846683,-3876.44,0.00017808,2]
[369389344,1751563846692,-460.0,0.00017808,2]
[369389346,1751563846701,-937.63,0.00017808,2]
[369389348,1751563846711,-460.0,0.00017808,2]
[369389350,1751563846720,-460.0,0.00017808,2]
[369389352,1751563846729,-460.0,0.00017808,2]
[369389353,1751563846741,-460.0,0.00017808,2]
[369389355,1751563846750,-250.0,0.00017819,2]
[369389357,1751563846759,-250.0,0.00017859,2]
[369389360,1751563846769,-2094.31040325,0.00017875,2]
[369389362,1751563846778,-250.0,0.00017898,2]
[369389364,1751563846787,-250.0,0.00017938,2]
[369389366,1751563846796,-1500.0,0.00017941,2]
[369389368,1751563846805,-250.0,0.00017978,2]
[369389370,1751563846815,-2945.29412669,0.00018,2]
[369389372,1751563846824,-250.0,0.00018017,2]
[369389374,1751563846833,-250.0,0.00018057,2]
[369389376,1751563846842,-1000.0,0.00018081,2]
[369389378,1751563846851,-460.0,0.00018082,2]
[369389380,1751563846860,-159.71,0.00018082,2]
[369389382,1751563846869,-941.7,0.00018082,2]
[369389384,1751563846878,-460.0,0.00018082,2]
[369389386,1751563846887,-460.0,0.00018082,2]
[369389388,1751563846896,-460.0,0.00018082,2]
[369389390,1751563846905,-460.0,0.00018082,2]
[369389392,1751563846914,-1061.72,0.00018082,2]
[369389394,1751563846923,-460.0,0.00018082,2]
[369389396,1751563846932,-527.61,0.00018082,2]
[369389398,1751563846941,-1182.01,0.00018082,2]
[369389400,1751563846950,-428.67,0.00018082,2]
[369389402,1751563846959,-460.0,0.00018082,2]
[369389404,1751563846967,-460.0,0.00018082,2]
[369389406,1751563846976,-2701.36,0.00018082,2]
[369389408,1751563846985,-460.0,0.00018082,2]
[369389410,1751563846994,-460.0,0.00018082,2]
[369389412,1751563847003,-460.0,0.00018082,2]
[369389414,1751563847013,-2515.67,0.00018082,2]
[369389416,1751563847022,-460.0,0.00018082,2]
[369389418,1751563847031,-460.0,0.00018082,2]
[369389420,1751563847040,-164.05406319,0.00018082,2]
[369389422,1751563847049,-460.0,0.00018082,2]
[369389424,1751563847058,-460.0,0.00018082,2]
[369389426,1751563847070,-460.0,0.00018082,2]
[369389428,1751563847083,-997.47,0.00018082,2]
[369389430,1751563847093,-494.00913631,0.00018082,2]